fUSD/lending_fUSD_20260412
["ID","MTS","AMOUNT","RATE_DAILY","PERIOD"]
[420334452,1775984830385,55000.0,0.00030137,120]
[420334453,1775984970677,2000.0,0.00030136,120]
[420334454,1775984975165,2000.0,0.00030136,120]
[420334455,1775984980024,2000.0,0.00030136,120]
[420334456,1775984985071,2000.0,0.00030136,120]
[420334457,1775984989622,2000.0,0.00030136,120]
[420334463,1775985031984,-262.02687277,0.0001,2]
[420334464,1775985032090,-633.64771724,0.0001,2]
[420334465,1775985032114,-222.43910968,0.0001,2]
[420334466,1775985032151,-2534.08413204,0.0001,2]
[420334467,1775985032167,-5147.97812015,0.0001,2]
[420334468,1775985032191,-500.0,0.00010673,2]
[420334469,1775985032208,-150.0,0.00010699,2]
[420334470,1775985032227,-5813.15552355,0.000107,2]
[420334471,1775985032251,-9751.38826439,0.000107,2]
[420334472,1775985032274,-3031.8631592,0.000107,2]
[420334475,1775985032299,-591.86802884,0.000107,2]
[420334477,1775985032334,-636.65095903,0.000107,2]
[420334483,1775985038715,-999.8506,0.000107,2]
[420334484,1775985038851,-1000.51193,0.000107,2]
[420334485,1775985039104,-1033.56296967,0.000107,2]
[420334486,1775985039123,-1337.35,0.000107,2]
[420334487,1775985039146,-1929.14658045,0.000107,2]
[420334488,1775985039165,-321.20997866,0.000107,2]
[420334489,1775985039184,-7390.81836801,0.000107,2]
[420334490,1775985039194,-255.0,0.00011737,2]
[420334491,1775985039207,-433.0,0.00012871,2]
[420334492,1775985039217,-250.0,0.00013,2]
[420334493,1775985039231,-150.0,0.000133,2]
[420334494,1775985039244,-736.0,0.00014123,2]
[420334495,1775985039256,-578.20924308,0.00014312,2]
[420334496,1775985039268,-150.0,0.000144,2]
[420334497,1775985039276,-150.0,0.000144,2]
[420334498,1775985039287,-150.0,0.000144,2]
[420334499,1775985039297,-171.7995,0.000145,2]
[420334500,1775985039306,-1600.0,0.00014886,2]
[420334501,1775985039317,-2637.61,0.00014961,2]
[420334502,1775985039327,-1328.27659266,0.00014981,2]
[420334503,1775985039336,-174.61919141,0.00014981,2]
[420334504,1775985039346,-5778.55306513,0.0001499,2]
[420334505,1775985039358,-300.0,0.00015,2]
[420334506,1775985039368,-2068.84278502,0.00015,2]
[420334507,1775985039377,-426.27241248,0.00015,2]
[420334508,1775985039386,-1007.50262918,0.00015,2]
[420334509,1775985039397,-5888.0,0.00015238,2]
[420334510,1775985039408,-5888.0,0.00015288,2]
[420334511,1775985039417,-271.17705776,0.0001532,2]
[420334512,1775985039426,-350.0,0.0001532,2]
[420334513,1775985039435,-255.0,0.00015365,2]
[420334514,1775985039447,-255.0,0.00015372,2]
[420334515,1775985039456,-255.0,0.00015394,2]
[420334516,1775985039465,-2712.40440818,0.000154,2]
[420334517,1775985039475,-513.04804861,0.000154,2]
[420334518,1775985039487,-1252.0,0.00015492,2]
[420334519,1775985039497,-1000.0,0.000155,2]
[420334520,1775985039507,-313.0,0.000155,2]
[420334521,1775985039516,-307.0,0.000155,2]
[420334522,1775985039531,-255.0,0.00015502,2]
[420334523,1775985039542,-4000.0,0.00015507,2]
[420334524,1775985039551,-1377.42282659,0.00015529,2]
[420334525,1775985039561,-181.08010149,0.00015529,2]
[420334526,1775985039577,-255.0,0.00015558,2]
[420334527,1775985039586,-168.0,0.00015679,2]
[420334528,1775985039599,-4354.33959702,0.0001568,2]
[420334529,1775985039614,-710.78966845,0.000157,2]
[420334530,1775985039623,-196.7673,0.000157,2]
[420334531,1775985039633,-255.0,0.0001576,2]
[420334532,1775985039647,-504.8583614,0.00015773,2]
[420334533,1775985039661,-500.0,0.00015773,2]
[420334534,1775985039674,-500.6344297,0.00015773,2]
[420334535,1775985039684,-447.37974736,0.00015773,2]
[420334536,1775985039694,-500.0,0.00015773,2]
[420334537,1775985039708,-500.0,0.00015773,2]
[420334538,1775985040071,-500.0,0.00015773,2]
[420334539,1775985040091,-163.9444966,0.00015773,2]
[420334540,1775985040110,-500.0,0.00015773,2]
[420334541,1775985040145,-219.12118541,0.00015798,2]
[420334543,1775985040181,-39712.1878,0.00015799,2]
[420334545,1775985040223,-2261.18963488,0.00015807,2]
[420334546,1775985040236,-2368.289,0.00015827,2]
[420334547,1775985040275,-171.413,0.00015827,2]
[420334549,1775985040356,-694.45901,0.0001584,2]
[420334550,1775985040395,-694.45901,0.0001584,2]
[420334551,1775985040420,-694.45901,0.0001585,2]
[420334552,1775985040437,-166.2149,0.0001587,2]
[420334553,1775985040463,-2000.0,0.0001589,2]
[420334554,1775985040483,-758.8637317,0.00015892,2]
[420334555,1775985040516,-2377.6290086,0.00015892,2]
[420334556,1775985040533,-169.2811284,0.00015892,2]
[420334557,1775985040560,-6697.0674135,0.00015892,2]
[420334558,1775985040578,-4000.0,0.00015895,2]
[420334559,1775985040599,-500.0,0.00015898,2]
[420334560,1775985040615,-500.0,0.00015898,2]
[420334561,1775985040632,-1000.0,0.00015899,2]
[420334562,1775985040645,-2766.4736,0.00015899,2]
[420334563,1775985040656,-392.22162618,0.000159,2]
[420334564,1775985040669,-5000.0,0.000159,2]
[420334565,1775985040684,-611.9073453,0.000159,2]
[420334566,1775985040694,-2634.23568672,0.000159,2]
[420334567,1775985040705,-884.47739048,0.000159,2]
[420334568,1775985040720,-449.2507753,0.000159,2]
[420334569,1775985040730,-152.96622743,0.000159,2]
[420334570,1775985040740,-1738.96106965,0.000159,2]
[420334571,1775985040749,-250.0,0.00015945,2]
[420334572,1775985040764,-250.0,0.00015945,2]
[420334573,1775985040774,-395.64,0.00015945,2]
[420334574,1775985040784,-500.36858789,0.00015973,2]
[420334575,1775985040793,-500.0,0.00015973,2]
[420334576,1775985040803,-500.0,0.00015973,2]
[420334577,1775985040815,-837.12149693,0.0001599,2]
[420334578,1775985040826,-1055.0,0.00015996,2]
[420334579,1775985040836,-1055.0,0.00015998,2]
[420334580,1775985040845,-500.0,0.00015999,2]
[420334581,1775985040859,-500.0,0.00015999,2]
[420334582,1775985040870,-500.0,0.00015999,2]
[420334583,1775985040880,-500.0,0.00015999,2]
[420334584,1775985040890,-500.0,0.00015999,2]
[420334585,1775985040901,-500.0,0.00015999,2]
[420334586,1775985040911,-500.0,0.00015999,2]
[420334587,1775985040921,-510.47625396,0.00015999,2]
[420334588,1775985040930,-500.0,0.00015999,2]
[420334589,1775985040941,-500.0,0.00015999,2]
[420334590,1775985040950,-500.0,0.00015999,2]
[420334591,1775985040959,-500.0,0.00015999,2]
[420334592,1775985040969,-500.0,0.00015999,2]
[420334593,1775985040980,-500.0,0.00015999,2]
[420334594,1775985040989,-500.0,0.00015999,2]
[420334595,1775985040999,-500.0,0.00015999,2]
[420334596,1775985041008,-500.0,0.00015999,2]
[420334597,1775985041017,-500.0,0.00015999,2]
[420334598,1775985041027,-500.0,0.00015999,2]
[420334599,1775985041036,-500.0,0.00015999,2]
[420334600,1775985041046,-500.0,0.00015999,2]
[420334601,1775985041061,-500.0,0.00015999,2]
[420334602,1775985041071,-621.40815876,0.00015999,2]
[420334603,1775985041081,-500.0,0.00015999,2]
[420334604,1775985041091,-500.0,0.00015999,2]
[420334605,1775985041100,-500.0,0.00015999,2]
[420334606,1775985041110,-500.0,0.00015999,2]
[420334607,1775985041120,-150.0,0.00015999,2]
[420334608,1775985041130,-500.0,0.00015999,2]
[420334609,1775985041140,-500.0,0.00015999,2]
[420334610,1775985041150,-500.0,0.00015999,2]
[420334611,1775985041161,-500.0,0.00015999,2]
[420334612,1775985041171,-500.0,0.00015999,2]
[420334613,1775985041181,-500.0,0.00015999,2]
[420334614,1775985041191,-500.0,0.00015999,2]
[420334615,1775985041201,-500.0,0.00015999,2]
[420334616,1775985041211,-500.0,0.00015999,2]
[420334617,1775985041221,-500.0,0.00015999,2]
[420334618,1775985041231,-500.0,0.00015999,2]
[420334619,1775985041240,-500.0,0.00015999,2]
[420334620,1775985041250,-500.0,0.00015999,2]
[420334621,1775985041260,-500.0,0.00015999,2]
[420334622,1775985041271,-500.0,0.00015999,2]
[420334623,1775985041283,-276.53980271,0.00015999,2]
[420334624,1775985041294,-500.0,0.00015999,2]
[420334625,1775985041304,-500.0,0.00015999,2]
[420334626,1775985041316,-161.24372588,0.00015999,2]
[420334628,1775985041327,-500.0,0.00015999,2]
[420334629,1775985041337,-500.0,0.00015999,2]
[420334630,1775985041347,-500.0,0.00015999,2]
[420334631,1775985041363,-500.0,0.00015999,2]
[420334632,1775985041373,-500.0,0.00015999,2]
[420334633,1775985041385,-500.0,0.00015999,2]
[420334634,1775985041402,-533.30698794,0.00015999,2]
[420334635,1775985041413,-2726.39523653,0.00015999,2]
[420334636,1775985041423,-500.0,0.00015999,2]
[420334637,1775985041436,-250.18723132,0.00015999,2]
[420334638,1775985041450,-403.79829102,0.00015999,2]
[420334639,1775985041460,-500.0,0.00015999,2]
[420334640,1775985041477,-2510.0,0.00016,5]
[420334641,1775985041489,-2005.0,0.00016,5]
[420334642,1775985041500,-2237.0,0.00016,5]
[420334643,1775985041510,-150.0,0.00016,2]
[420334644,1775985041527,-190021.98744408,0.00016,2]
[420334645,1775985041573,-1738.835448,0.00016,2]
[420334646,1775985041593,-431.69598331,0.00016,2]
[420334647,1775985041610,-569.6972,0.00016,2]
[420334648,1775985041648,-563.98499999,0.00016,2]
[420334649,1775985041661,-1584.52531957,0.00016,2]
[420334650,1775985041692,-1164.20361154,0.00016,2]
[420334651,1775985041705,-3242.36316023,0.00016,2]
[420334652,1775985041727,-14639.6315154,0.00016,2]
[420334653,1775985041739,-993.71667762,0.00016,2]
[420334654,1775985041783,-436.75223375,0.00016,2]
[420334655,1775985042755,-265.96,0.00016,2]
[420334656,1775985042849,-257006.69510677,0.00016,2]
[420334657,1775985042863,-38225.04282659,0.00016,2]
[420334658,1775985042883,-6006.11596251,0.00016,2]
[420334659,1775985042898,-265.1286,0.00016,2]
[420334661,1775985042994,-624.42840022,0.00016,2]
[420334662,1775985043007,-1039.39137545,0.00016,2]
[420334663,1775985043019,-1075.96753634,0.00016,2]
[420334664,1775985043037,-333.26194966,0.00016,2]
[420334669,1775985044043,-1625.27450502,0.00016,2]
[420334673,1775985044490,-23562.24620963,0.00016,2]
[420334674,1775985044516,-8140.18566092,0.00016,2]
[420334675,1775985044540,-1000.01065259,0.00016,2]
[420334676,1775985046307,-166.2149,0.0001587,2]
[420334677,1775985046322,-4479.44654748,0.000159,2]
[420334678,1775985046338,-2509.36218916,0.00016,2]
[420334679,1775985046355,-2550.49065382,0.00016,2]
[420334680,1775985046409,-32921.25085867,0.00016,2]
[420334684,1775985086787,200.0,0.00028637,120]
[420334685,1775985087764,291.0,0.00028637,120]
[420334688,1775985313662,1000.0,0.0003013,120]
[420334689,1775985385934,306.0,0.0003013,120]
[420334690,1775985453589,150.0,0.00027328,120]
[420334691,1775985455786,235.0,0.00027328,120]
[420334692,1775985462501,166.0,0.00027157,120]
[420334693,1775985548433,173.0,0.0002678,120]
[420334694,1775985614453,196.0,0.0002701,120]
[420334697,1775985739982,3090.0,0.00030137,120]
[420334698,1775985740445,264.0,0.00027397,120]
[420334699,1775985979420,193.0,0.00027064,120]
[420334700,1775985987326,157.0,0.0002686,120]
[420334701,1775986029620,500.0,0.0003013,120]
[420334702,1775986101961,244.0,0.000268,120]
[420334703,1775986141353,400.0,0.0003,120]
[420334704,1775986147216,-250.0,0.00013,2]
[420334705,1775986147277,-2500.0,0.00013997,2]
[420334706,1775986147414,-300.0,0.00013997,2]
[420334707,1775986147470,-300.0,0.00014299,2]
[420334708,1775986147505,-2151.983816,0.000143,2]
[420334709,1775986225001,177.0,0.00026911,120]
[420334712,1775986232179,-300.0,0.000143,2]
[420334747,1775986234514,202.0,0.00026849,120]
[420334748,1775986238371,-48.016184,0.000143,2]
[420334749,1775986238384,-300.0,0.000143,2]
[420334750,1775986238394,-333.9420669,0.000143,2]
[420334751,1775986238412,-150.0,0.00014636,2]
[420334752,1775986238423,-1710.96074259,0.00014637,2]
[420334753,1775986238438,-789.03925741,0.00014637,2]
[420334754,1775986238450,-398.71158256,0.00014637,2]
[420334755,1775986238467,-2101.28841744,0.00014637,2]
[420334756,1775986238479,-2500.0,0.00014637,2]
[420334757,1775986238491,-300.0,0.00014637,2]
[420334758,1775986238504,-300.0,0.00014637,2]
[420334759,1775986238518,-300.0,0.00014637,2]
[420334760,1775986238529,-1344.16,0.00014989,2]
[420334761,1775986238544,-200.0,0.00014993,2]
[420334762,1775986238555,-300.0,0.00015,2]
[420334763,1775986238582,-150.0,0.00015096,2]
[420334764,1775986238593,-578.20924308,0.00015096,2]
[420334765,1775986238615,-2000.0,0.00015197,2]
[420334766,1775986238626,-1427.53610694,0.00015684,2]
[420334767,1775986238641,-901.16,0.00015684,2]
[420334768,1775986238660,-1087.54389306,0.00015684,2]
[420334769,1775986238678,-836.0,0.000157,2]
[420334770,1775986238689,-2614.00908861,0.0001573,2]
[420334771,1775986238725,-500.0,0.0001573,2]
[420334774,1775986238873,-939.29565892,0.0001573,2]
[420334775,1775986238883,-2500.0,0.0001573,2]
[420334776,1775986238900,-300.0,0.0001573,2]
[420334777,1775986238919,-1318.01805689,0.00015739,2]
[420334778,1775986238941,-26.14194311,0.00015739,2]
[420334779,1775986238960,-174.61919141,0.00015741,2]
[420334780,1775986238974,-98.75056964,0.00015763,2]
[420334782,1775986239887,-156.24943036,0.00015763,2]
[420334783,1775986239898,-175.14481168,0.000158,2]
[420334784,1775986239921,-824.85518832,0.000158,2]
[420334785,1775986239930,-347.2295,0.0001584,2]
[420334786,1775986239947,-347.22951,0.0001584,2]
[420334787,1775986239957,-347.22951,0.0001585,2]
[420334788,1775986239968,-2902.89306468,0.0001587,2]
[420334789,1775986239978,-166.215,0.0001587,2]
[420334790,1775986239996,-1894.631,0.00015899,2]
[420334791,1775986240009,-171.414,0.00015899,2]
[420334792,1775986240019,-336.18996528,0.000159,2]
[420334793,1775986240043,-3741.13575277,0.000159,2]
[420334794,1775986240053,-5000.0,0.000159,2]
[420334795,1775986240062,-589.65159364,0.000159,2]
[420334796,1775986240084,-1449.1342247,0.000159,2]
[420334797,1775986240094,-500.0,0.00015973,2]
[420334798,1775986240103,-1328.27659266,0.0001599,2]
[420334799,1775986240117,-666.0,0.00015999,2]
[420334800,1775986240145,-300.0,0.00015999,2]
[420334801,1775986240156,-666.0,0.00015999,2]
[420334802,1775986240183,-300.0,0.00015999,2]
[420334803,1775986240208,-666.0,0.00015999,2]
[420334804,1775986240242,-300.0,0.00015999,2]
[420334805,1775986240264,-5556.9113082,0.00015999,2]
[420334806,1775986240287,-7475.00378975,0.00015999,2]
[420334807,1775986240445,-674.83954415,0.00015999,2]
[420334811,1775986241084,-67028.566346,0.00015999,2]
[420334812,1775986241094,-500.0,0.00015999,2]
[420334813,1775986241112,-500.0,0.00015999,2]
[420334814,1775986241134,-500.0,0.00015999,2]
[420334815,1775986241159,-500.0,0.00015999,2]
[420334816,1775986241183,-500.0,0.00015999,2]
[420334817,1775986241193,-500.0,0.00015999,2]
[420334818,1775986241204,-500.0,0.00015999,2]
[420334819,1775986241221,-500.0,0.00015999,2]
[420334820,1775986241242,-500.0,0.00015999,2]
[420334821,1775986241252,-150.0,0.00015999,2]
[420334822,1775986241267,-500.0,0.00015999,2]
[420334823,1775986241280,-500.0,0.00015999,2]
[420334824,1775986241290,-500.0,0.00015999,2]
[420334825,1775986241300,-500.0,0.00015999,2]
[420334826,1775986241318,-500.0,0.00015999,2]
[420334827,1775986241335,-529.98307748,0.00015999,2]
[420334828,1775986241344,-525.13106193,0.00015999,2]
[420334829,1775986241354,-632.65880372,0.00015999,2]
[420334830,1775986241364,-632.65880372,0.00015999,2]
[420334831,1775986241379,-1785.0,0.00016,5]
[420334832,1775986241397,-1428.0,0.00016,5]
[420334833,1775986241407,-108535.22151715,0.00016,2]
[420334834,1775986241444,-13559.37474753,0.00016,2]
[420334835,1775986241515,-610.45389952,0.000159,2]
[420334838,1775986241883,-2511.25,0.000159,2]
[420334839,1775986241911,-438.0000005,0.000159,2]
[420334844,1775986243691,-1985.03709536,0.000159,2]
[420334845,1775986243741,-1099.83148564,0.000159,2]
[420334847,1775986243795,-558.08099796,0.0001599,2]
[420334849,1775986243814,-253.25696447,0.00015999,2]
[420334850,1775986243835,-1385.74303553,0.00015999,2]
[420334851,1775986243848,-3155.77246243,0.00016,2]
[420334852,1775986243874,-5908.47406092,0.00016,2]
[420334854,1775986246494,-680.9205656,0.00016,2]
[420334855,1775986246560,-3694.21045042,0.00016,2]
[420334860,1775986418481,531.63056,0.0003013,120]
[420334861,1775986458987,190.0,0.00027054,120]
[420334862,1775986776113,276.0,0.00030137,120]
[420334863,1775986796024,278.79837625,0.00030137,120]
[420334865,1775986996954,176.0,0.00025576,120]
[420334866,1775987001475,246.0,0.00025479,120]
[420334867,1775987117755,186.0,0.00025753,120]
[420334868,1775987127142,199.0,0.000257,120]
[420334869,1775987375718,-315.0,0.00013766,2]
[420334870,1775987375770,-150.0,0.00013766,2]
[420334871,1775987375816,-2500.0,0.00013801,2]
[420334872,1775987375862,-166.66,0.00013836,2]
[420334873,1775987375926,-166.66,0.00014127,2]
[420334874,1775987375961,-2500.0,0.00014171,2]
[420334875,1775987376014,-1447.024134,0.00014171,2]
[420334876,1775987431635,-1052.975866,0.00014171,2]
[420334877,1775987431660,-2500.0,0.00014295,2]
[420334878,1775987431672,-166.66,0.00014418,2]
[420334879,1775987431688,-166.66,0.00014709,2]
[420334880,1775987431710,-300.0,0.00014724,2]
[420334881,1775987431722,-300.0,0.00014775,2]
[420334882,1775987431739,-300.0,0.00014775,2]
[420334883,1775987431758,-200.39827444,0.00014775,2]
[420334884,1775987431770,-165.59,0.0001478,2]
[420334885,1775987431782,-1653.93,0.00014813,2]
[420334886,1775987431813,-1600.0,0.00014833,2]
[420334887,1775987431823,-166.66,0.00015001,2]
[420334889,1775987431834,-1318.8,0.00015135,2]
[420334890,1775987431851,-300.0,0.00015142,2]
[420334891,1775987431867,-829.76816467,0.00015143,2]
[420334892,1775987431881,-1670.23183533,0.00015143,2]
[420334893,1775987431902,-1559.6518655,0.00015143,2]
[420334895,1775987432080,-940.3481345,0.00015143,2]
[420334896,1775987432096,-578.20924308,0.00015167,2]
[420334897,1775987432112,-174.61919141,0.00015167,2]
[420334898,1775987432124,-5000.0,0.000152,2]
[420334899,1775987432135,-421.04,0.00015252,2]
[420334900,1775987432155,-166.66,0.00015292,2]
[420334901,1775987432165,-421.04,0.00015391,2]
[420334902,1775987432183,-4000.0,0.00015507,2]
[420334903,1775987432193,-421.05216444,0.00015531,2]
[420334904,1775987432203,-1515.705,0.00015551,2]
[420334905,1775987432219,-1458.43172151,0.00015551,2]
[420334906,1775987432238,-171.414,0.00015551,2]
[420334907,1775987432250,-300.0,0.00015583,2]
[420334908,1775987432260,-3367.02217743,0.00015584,2]
[420334909,1775987432273,-2460.38832561,0.00015584,2]
[420334910,1775987432285,-5980.1152329,0.00015584,2]
[420334911,1775987432297,-2500.0,0.00015588,2]
[420334912,1775987432310,-1328.27659266,0.00015629,2]
[420334913,1775987432325,-253.06352148,0.00015638,2]
[420334914,1775987432341,-367.59174335,0.00015638,2]
[420334915,1775987432354,-500.0,0.00015638,2]
[420334916,1775987432390,-500.0,0.00015638,2]
[420334917,1775987432403,-500.0,0.00015638,2]
[420334918,1775987432417,-115222.54630207,0.00015639,2]
[420334919,1775987432438,-12124.57641806,0.00015639,2]
[420334920,1775987432459,-32613.66486796,0.00015639,2]
[420334921,1775987432484,-50645.61045461,0.00015639,2]
[420334925,1775987437622,-287.68959405,0.00015639,2]
[420334926,1775987437915,-524.0,0.00015639,2]
[420334927,1775987437989,-669.57770617,0.00015639,2]
[420334928,1775987438006,-538.10383277,0.00015639,2]
[420334931,1775987439784,-635.19657638,0.00015639,2]
[420334932,1775987440072,-332913.08754793,0.00015639,2]
[420334933,1775987440106,-1055.0,0.00015684,2]
[420334934,1775987440122,-525.75,0.00015684,2]
[420334935,1775987440145,-1055.0,0.00015699,2]
[420334936,1775987440159,-181.08010149,0.00015715,2]
[420334937,1775987440184,-1055.0,0.00015778,2]
[420334938,1775987440197,-1055.0,0.00015786,2]
[420334939,1775987440207,-173.61475,0.0001584,2]
[420334940,1775987440230,-173.61475,0.0001584,2]
[420334941,1775987440240,-173.61476,0.0001585,2]
[420334942,1775987440252,-1055.0,0.0001586,2]
[420334943,1775987440267,-165.553,0.0001587,2]
[420334944,1775987440304,-165.553,0.0001588,2]
[420334945,1775987440316,-2000.0,0.0001589,2]
[420334946,1775987440326,-4000.0,0.00015895,2]
[420334947,1775987440358,-1000.0,0.000159,2]
[420334948,1775987440368,-5000.0,0.000159,2]
[420334949,1775987440396,-288.1628274,0.000159,2]
[420334950,1775987440409,-393.10106244,0.000159,2]
[420334951,1775987440420,-1207.6118539,0.000159,2]
[420334952,1775987440436,-1055.0,0.00015913,2]
[420334953,1775987440445,-1055.0,0.00015919,2]
[420334954,1775987440459,-500.0,0.00015973,2]
[420334955,1775987440470,-500.0,0.00015973,2]
[420334956,1775987440486,-238.29748426,0.00015973,2]
[420334957,1775987440497,-500.62307082,0.00015973,2]
[420334958,1775987440518,-500.0,0.00015973,2]
[420334959,1775987440529,-500.0,0.00015973,2]
[420334960,1775987440542,-500.0,0.00015973,2]
[420334961,1775987440558,-372.05399864,0.0001599,2]
[420334962,1775987440569,-666.0,0.00015993,2]
[420334963,1775987440584,-300.0,0.00015993,2]
[420334964,1775987440597,-1827.7450778,0.00015994,2]
[420334966,1775987440610,-16118.4739701,0.00015994,2]
[420334967,1775987440631,-1516.5768334,0.00015994,2]
[420334968,1775987440646,-670.13071491,0.00015999,2]
[420334969,1775987440655,-666.0,0.00015999,2]
[420334970,1775987440667,-300.0,0.00015999,2]
[420334971,1775987440686,-300.0,0.00015999,2]
[420334972,1775987440696,-500.0,0.00015999,2]
[420334973,1775987440708,-500.0,0.00015999,2]
[420334974,1775987440723,-500.0,0.00015999,2]
[420334975,1775987440735,-500.0,0.00015999,2]
[420334976,1775987440745,-500.0,0.00015999,2]
[420334977,1775987440767,-500.0,0.00015999,2]
[420334978,1775987440776,-500.0,0.00015999,2]
[420334979,1775987440786,-500.0,0.00015999,2]
[420334980,1775987440804,-150.0,0.00015999,2]
[420334981,1775987440814,-1262.0,0.00016,5]
[420334982,1775987440824,-1010.0,0.00016,5]
[420334983,1775987440835,-63356.33028751,0.00016,2]
[420334984,1775987440850,-7464.80342362,0.00016,2]
[420334985,1775987440861,-3319.34564539,0.00016,2]
[420334986,1775987440922,-8114.7453698,0.00016,2]
[420334987,1775987440940,-3549.4941997,0.00016,2]
[420334997,1775987442573,-859.14431074,0.00016,2]
[420334998,1775987442996,-524.74201032,0.00016,2]
[420334999,1775987443041,-3302.55053612,0.00016,2]
[420335000,1775987443054,-3939.183122,0.00016,2]
[420335001,1775987443179,-11341.01359377,0.00016,2]
[420335002,1775987443211,-1875.8103099,0.00016,2]
[420335009,1775987445563,-48796.51770747,0.00016,2]
[420335010,1775987445845,-18589.71119887,0.00016,2]
[420335011,1775987445881,-439.13846193,0.00016,2]
[420335012,1775987479484,178.0,0.00027796,120]
[420335013,1775987484700,318.0,0.000274,120]
[420335014,1775987565226,500.0,0.00029452,120]
[420335015,1775987720818,201.0,0.00027397,120]
[420335016,1775987839428,249.0,0.000274,120]
[420335017,1775987888316,381.53,0.00030136,120]
[420335018,1775987932885,1400.0,0.00030137,120]
[420335022,1775988138535,153.0,0.00027261,120]
[420335023,1775988276840,150.0,0.00030136,120]
[420335024,1775988385395,337.04,0.00030137,120]
[420335025,1775988575477,-250.0,0.00013,2]
[420335026,1775988575498,-335.0,0.00013,2]
[420335027,1775988575518,-1312.93270284,0.00014017,2]
[420335028,1775988575538,-2500.0,0.00014113,2]
[420335029,1775988575558,-300.0,0.00014299,2]
[420335030,1775988575577,-300.0,0.000143,2]
[420335031,1775988575598,-2500.0,0.000143,2]
[420335032,1775988575618,-2500.0,0.000143,2]
[420335033,1775988575638,-150.0,0.000144,2]
[420335034,1775988575662,-40.33892346,0.000144,2]
[420335035,1775988631726,-109.66107654,0.000144,2]
[420335036,1775988631737,-150.0,0.000144,2]
[420335037,1775988631751,-2500.0,0.00014474,2]
[420335038,1775988631761,-150.0,0.00014548,2]
[420335039,1775988631771,-2500.0,0.00014609,2]
[420335040,1775988631790,-150.0,0.00014651,2]
[420335041,1775988631800,-300.0,0.00014651,2]
[420335042,1775988631809,-1200.0,0.00014651,2]
[420335043,1775988631820,-500.0,0.00014652,2]
[420335044,1775988631838,-500.0,0.00014652,2]
[420335045,1775988631848,-500.0,0.00014652,2]
[420335046,1775988631858,-500.0,0.00014652,2]
[420335047,1775988631868,-500.0,0.00014652,2]
[420335048,1775988631887,-500.0,0.00014652,2]
[420335049,1775988631897,-500.0,0.00014652,2]
[420335050,1775988631915,-500.0,0.00014652,2]
[420335051,1775988631924,-500.0,0.00014652,2]
[420335052,1775988631933,-250.34887238,0.00014652,2]
[420335053,1775988631953,-2000.0,0.00014794,2]
[420335054,1775988631967,-150.0,0.00014933,2]
[420335055,1775988631977,-150.0,0.00014933,2]
[420335056,1775988632000,-200.0,0.00014945,2]
[420335057,1775988632032,-5440.89996692,0.0001499,2]
[420335058,1775988632044,-300.0,0.00015,2]
[420335059,1775988632064,-92962.69177911,0.00015,2]
[420335060,1775988632081,-20112.4471666,0.00015,2]
[420335061,1775988632153,-15882.49330294,0.00015,2]
[420335062,1775988632214,-2004.59913914,0.00015,2]
[420335063,1775988632237,-16121.05247707,0.00015,2]
[420335064,1775988632276,-1378.17418521,0.00015,2]
[420335066,1775988637914,-257.31422034,0.00014999,2]